fUSD/lending_fUSD_20240323
["ID","MTS","AMOUNT","RATE_DAILY","PERIOD"]
[320098235,1711158434157,-4015.18078037,0.00016814,2]
[320098236,1711158434176,-654.85680849,0.00016842,2]
[320098237,1711158434197,-419.95,0.00018477,2]
[320098238,1711158434217,-250.0,0.00018487,2]
[320098239,1711158434237,-150.0,0.00018493,2]
[320098240,1711158434259,-206.61,0.00018522,2]
[320098241,1711158434281,-249.83,0.00018533,2]
[320098242,1711158434646,-1871.94,0.00018545,2]
[320098243,1711158434668,-2073.18856133,0.00018551,2]
[320098244,1711158479917,439.3,0.00016756,2]
[320098245,1711158589271,-200.0,0.000192,7]
[320098246,1711158589292,-500.0,0.000193,7]
[320098247,1711158589314,-800.0,0.000194,7]
[320098248,1711158589335,-1100.0,0.000195,7]
[320098249,1711158589356,-1400.0,0.000196,7]
[320098250,1711158589377,-200.0,0.000197,7]
[320098251,1711158589401,-200.0,0.000198,7]
[320098252,1711158589477,-200.0,0.000199,7]
[320098263,1711158632388,-581.82120858,0.00018551,2]
[320098264,1711158632501,-397.69023009,0.00018551,2]
[320098265,1711158632510,-701.94500624,0.00018619,2]
[320098266,1711158632522,-225.72499376,0.00018619,2]
[320098267,1711158632531,-5022.01248899,0.00018619,2]
[320098268,1711158632540,-151.43,0.00018622,2]
[320098269,1711158632549,-686.14,0.00018637,2]
[320098270,1711158632558,-1468.99,0.00018653,2]
[320098271,1711158632567,-250.0,0.00018659,2]
[320098272,1711158632577,-664.04,0.00018667,2]
[320098273,1711158632586,-1384.72,0.0001869,2]
[320098274,1711158632595,-160.0,0.00018695,2]
[320098275,1711158632604,-160.0,0.00018695,2]
[320098276,1711158632614,-1000.0,0.00019018,2]
[320098277,1711158632624,-300.0,0.00019019,2]
[320098278,1711158632633,-439.3,0.0001902,2]
[320098279,1711158632643,-197.86686106,0.00019063,2]
[320098280,1711158632652,-346.78785817,0.00019066,2]
[320098281,1711158632661,-197.86686106,0.00019089,2]
[320098282,1711158632671,-156.80624027,0.00019203,2]
[320098283,1711158632681,-151.0281998,0.00019214,2]
[320098285,1711158632690,-435.06852703,0.00019235,2]
[320098286,1711158632699,-154.39250001,0.00019239,2]
[320098287,1711158632708,-165.30277346,0.00019251,2]
[320098288,1711158632717,-367.28948405,0.00019253,2]
[320098289,1711158632726,-303.56409489,0.00019404,2]
[320098290,1711158632735,-168.3221185,0.0001942,2]
[320098291,1711158632745,-259.32111494,0.00019459,2]
[320098293,1711158632754,-367.28948405,0.00019538,2]
[320098295,1711158632763,-154.39250001,0.00019541,2]
[320098297,1711158632772,-154.39250001,0.00019561,2]
[320098299,1711158632781,-435.06852703,0.00019578,2]
[320098300,1711158632790,-691.36942403,0.00019642,2]
[320098301,1711158632799,-156.63348719,0.00019664,2]
[320098302,1711158632808,-156.63348719,0.00019689,2]
[320098303,1711158632817,-1500.0,0.00019718,2]
[320098304,1711158632826,-150.0,0.00019724,2]
[320098305,1711158632835,-150.0,0.00019728,2]
[320098306,1711158632845,-1500.0,0.00019729,2]
[320098307,1711158632854,-1008.66169058,0.00019729,2]
[320098308,1711158632863,-1500.0,0.0001973,2]
[320098309,1711158632872,-150.0,0.00019736,2]
[320098310,1711158632881,-150.0,0.00019741,2]
[320098311,1711158632890,-150.0,0.00019743,2]
[320098312,1711158632900,-150.0,0.00019744,2]
[320098313,1711158632913,-1500.0,0.00019744,2]
[320098314,1711158632922,-150.0,0.00019746,2]
[320098315,1711158632931,-150.0,0.00019746,2]
[320098316,1711158632941,-150.0,0.0001975,2]
[320098317,1711158632951,-150.0,0.0001975,2]
[320098318,1711158632961,-150.0,0.00019751,2]
[320098319,1711158632970,-200.0,0.00019752,2]
[320098320,1711158632980,-150.0,0.00019761,2]
[320098321,1711158632990,-200.0,0.00019763,2]
[320098322,1711158633001,-150.0,0.00019764,2]
[320098323,1711158633010,-197.86686106,0.00019771,2]
[320098324,1711158633021,-200.0,0.00019774,2]
[320098325,1711158633030,-800.0,0.00019774,2]
[320098326,1711158633039,-200.0,0.00019774,2]
[320098327,1711158633048,-150.0,0.00019776,2]
[320098328,1711158633058,-150.0,0.00019777,2]
[320098329,1711158633066,-259.32111494,0.00019779,2]
[320098330,1711158633077,-155.50951155,0.00019781,2]
[320098331,1711158633086,-150.0,0.00019786,2]
[320098332,1711158633096,-150.0,0.00019788,2]
[320098333,1711158633106,-1529.51909143,0.00019789,2]
[320098334,1711158633115,-231.56067776,0.00019789,2]
[320098335,1711158633126,-502.0870474,0.00019792,2]
[320098336,1711158633136,-612.3632,0.00019792,2]
[320098337,1711158633146,-1422.0208,0.00019792,2]
[320098338,1711158633159,-7500.0,0.00019792,2]
[320098339,1711158633177,-347.09,0.00019793,2]
[320098340,1711158633187,-347.09,0.00019793,2]
[320098341,1711158633196,-347.09,0.00019793,2]
[320098342,1711158633206,-347.09,0.00019793,2]
[320098343,1711158633215,-347.09,0.00019793,2]
[320098344,1711158633224,-347.09,0.00019793,2]
[320098345,1711158633233,-154.39250001,0.00019795,2]
[320098346,1711158633245,-200.0,0.00019796,2]
[320098347,1711158633254,-1500.0,0.00019796,2]
[320098348,1711158633263,-3524.41242779,0.00019798,2]
[320098349,1711158633272,-150.0,0.00019798,2]
[320098350,1711158633281,-350.0175,0.00019798,2]
[320098351,1711158633290,-150.0,0.00019799,2]
[320098352,1711158633299,-155.5095115,0.00019801,2]
[320098353,1711158633308,-561.39848952,0.00019805,2]
[320098354,1711158633317,-294.93664028,0.00019805,2]
[320098355,1711158633327,-150.0,0.00019806,2]
[320098356,1711158633336,-155.33237766,0.00019806,2]
[320098357,1711158633345,-100000.0,0.00019807,2]
[320098358,1711158633355,-73252.3957,0.00019807,2]
[320098359,1711158633364,-150.0,0.00019809,2]
[320098360,1711158633373,-150.0,0.00019809,2]
[320098361,1711158633383,-150.0,0.00019809,2]
[320098362,1711158633392,-150.0,0.00019814,2]
[320098363,1711158633402,-150.0,0.00019817,2]
[320098364,1711158633411,-200.0,0.00019817,2]
[320098365,1711158633421,-155.5095115,0.00019821,2]
[320098366,1711158633431,-150.0,0.00019822,2]
[320098367,1711158633440,-150.0,0.00019823,2]
[320098368,1711158633450,-150.0,0.00019826,2]
[320098369,1711158633459,-259.32111494,0.00019827,2]
[320098370,1711158633469,-691.36942403,0.00019829,2]
[320098371,1711158633479,-302.41853374,0.0001983,2]
[320098372,1711158633488,-150.0,0.00019833,2]
[320098373,1711158633500,-150.0,0.00019834,2]
[320098374,1711158633509,-156.96553351,0.00019837,2]
[320098375,1711158633518,-1500.0,0.00019837,2]
[320098376,1711158633527,-200.0,0.00019839,2]
[320098377,1711158633536,-200.0,0.00019839,2]
[320098378,1711158633545,-150.0,0.00019839,2]
[320098379,1711158633555,-151.16152024,0.0001984,2]
[320098380,1711158633564,-150.0,0.0001984,2]
[320098381,1711158633574,-155.5095115,0.00019841,2]
[320098382,1711158633585,-1500.0,0.00019841,2]
[320098383,1711158633594,-150.0,0.00019841,2]
[320098384,1711158633604,-150.0,0.00019845,2]
[320098385,1711158633613,-150.0,0.00019846,2]
[320098386,1711158633622,-309.37,0.00019847,2]
[320098387,1711158633631,-744.88,0.00019847,2]
[320098388,1711158633641,-418.34,0.00019847,2]
[320098389,1711158633651,-158.03594039,0.00019848,2]
[320098390,1711158633660,-150.0,0.00019853,2]
[320098391,1711158633669,-1500.0,0.00019855,2]
[320098392,1711158633678,-155.5095115,0.0001986,2]
[320098393,1711158633687,-150.0,0.00019866,2]
[320098394,1711158633697,-150.0,0.00019869,2]
[320098395,1711158633706,-150.0,0.0001987,2]
[320098396,1711158633716,-150.0,0.00019873,2]
[320098397,1711158633725,-2509.0398028,0.00019875,2]
[320098398,1711158633734,-151.032311,0.00019878,2]
[320098399,1711158633752,-151.032311,0.00019878,2]
[320098400,1711158633761,-151.032311,0.00019878,2]
[320098401,1711158633771,-151.032311,0.00019878,2]
[320098402,1711158633780,-151.032311,0.00019878,2]
[320098403,1711158633790,-151.032311,0.00019878,2]
[320098404,1711158633800,-151.032311,0.00019878,2]
[320098405,1711158633809,-151.032311,0.00019878,3]
[320098406,1711158633818,-151.032311,0.00019878,3]
[320098407,1711158633828,-151.032311,0.00019878,3]
[320098408,1711158633837,-151.032311,0.00019878,3]
[320098409,1711158633847,-151.032311,0.00019878,3]
[320098410,1711158633856,-151.032311,0.00019878,3]
[320098411,1711158633866,-151.032311,0.00019878,3]
[320098412,1711158633876,-151.032311,0.00019878,3]
[320098413,1711158633885,-151.032311,0.00019878,3]
[320098414,1711158633894,-151.032311,0.00019878,3]
[320098415,1711158633904,-500.0,0.00019879,2]
[320098416,1711158633917,-226.1941672,0.00019879,2]
[320098417,1711158633926,-58673.50580703,0.0001988,2]
[320098418,1711158633936,-155.5095115,0.0001988,2]
[320098419,1711158633947,-349.55641728,0.00019881,5]
[320098420,1711158633956,-150.0,0.00019883,2]
[320098421,1711158633965,-214.25118103,0.00019885,2]
[320098422,1711158633974,-1500.0,0.00019886,2]
[320098423,1711158633985,-89329.19829435,0.00019886,2]
[320098424,1711158634000,-346.78785817,0.00019887,2]
[320098425,1711158634010,-303.56409489,0.00019888,2]
[320098426,1711158634019,-1873.39,0.00019888,2]
[320098427,1711158634028,-3323.48,0.00019888,2]
[320098428,1711158634037,-3563.73,0.00019888,2]
[320098429,1711158634047,-3148.73,0.00019888,2]
[320098430,1711158634057,-5558.62,0.00019888,2]
[320098431,1711158634066,-1534.11852564,0.00019888,2]
[320098432,1711158634087,-1756.84147436,0.00019888,2]
[320098433,1711158634096,-1583.22690516,0.00019888,2]
[320098434,1711158634107,-1371.38309484,0.00019888,2]
[320098435,1711158634116,-46.40321169,0.00019888,2]
[320098436,1711158634159,-10266.59678831,0.00019888,2]
[320098437,1711158634168,-17950.6,0.00019888,2]
[320098438,1711158634177,-233.76568493,0.00019888,2]
[320098439,1711158634193,-300.59279794,0.00019888,2]
[320098451,1711158638296,-1765.22151713,0.00019888,2]
[320098452,1711158638306,-3303.26592121,0.00019888,2]
[320098453,1711158638317,-17945.46407879,0.00019888,2]
[320098454,1711158638326,-6710.78,0.00019888,2]
[320098455,1711158638335,-5057.38,0.00019888,2]
[320098456,1711158638345,-1350.19,0.00019888,2]
[320098457,1711158638355,-5710.49,0.00019888,2]
[320098458,1711158638364,-3054.82,0.00019888,2]
[320098459,1711158638373,-1102.23,0.00019888,2]
[320098460,1711158638382,-2025.73,0.00019888,2]
[320098461,1711158638391,-4864.69,0.00019888,2]
[320098462,1711158638400,-2471.34,0.00019888,2]
[320098463,1711158638409,-988.16,0.00019888,2]
[320098464,1711158638418,-3189.92,0.00019888,2]
[320098465,1711158638427,-3670.45,0.00019888,2]
[320098466,1711158638436,-5890.21,0.00019888,2]
[320098467,1711158638445,-966.23,0.00019888,2]
[320098468,1711158638454,-1370.46,0.00019888,2]
[320098469,1711158638463,-5698.43,0.00019888,2]
[320098470,1711158638474,-1822.89,0.00019888,2]
[320098471,1711158638483,-500.0,0.00019889,2]
[320098472,1711158638493,-502.02649292,0.00019889,2]
[320098473,1711158638502,-500.0,0.00019889,2]
[320098474,1711158638512,-502.15587554,0.00019889,2]
[320098475,1711158638521,-501.34105425,0.00019889,2]
[320098476,1711158638530,-501.8913615,0.00019889,2]
[320098477,1711158638540,-440.54167287,0.00019889,2]
[320098478,1711158638551,-500.42406139,0.00019889,2]
[320098479,1711158638560,-500.0,0.00019889,2]
[320098480,1711158638569,-502.25902126,0.00019889,2]
[320098481,1711158638581,-500.0,0.00019889,2]
[320098483,1711158638590,-500.0,0.00019889,2]
[320098485,1711158638599,-502.27697289,0.00019889,2]
[320098487,1711158638609,-501.07412325,0.00019889,2]
[320098489,1711158638618,-501.86431265,0.00019889,2]
[320098491,1711158638628,-500.0,0.00019889,2]
[320098493,1711158638637,-500.0,0.00019889,2]
[320098495,1711158638647,-2281.18,0.00019889,2]
[320098497,1711158638657,-517.77501149,0.00019889,2]
[320098499,1711158638666,-501.83445249,0.00019889,2]
[320098501,1711158638675,-500.0,0.00019889,2]
[320098503,1711158638684,-500.0,0.00019889,2]
[320098505,1711158638694,-512.81,0.00019889,2]
[320098507,1711158638703,-502.30613125,0.00019889,2]
[320098509,1711158638713,-1937.61,0.00019889,2]
[320098511,1711158638722,-502.26363468,0.00019889,2]
[320098513,1711158638731,-501.91918344,0.00019889,2]
[320098515,1711158638740,-502.07070021,0.00019889,2]
[320098517,1711158638750,-503.20120116,0.00019889,2]
[320098519,1711158638759,-504.47949408,0.00019889,2]
[320098520,1711158638768,-1150.56,0.00019889,2]
[320098523,1711158638778,-502.14872079,0.00019889,2]
[320098525,1711158638787,-502.66776468,0.00019889,2]
[320098527,1711158638797,-500.71579087,0.00019889,2]
[320098529,1711158638806,-500.0,0.00019889,2]
[320098531,1711158638816,-502.04696254,0.00019889,2]
[320098532,1711158638825,-500.0,0.00019889,2]
[320098534,1711158638834,-504.02675687,0.00019889,2]
[320098537,1711158638845,-741.08,0.00019889,2]
[320098539,1711158638854,-500.0,0.00019889,2]
[320098541,1711158638863,-500.0,0.00019889,2]
[320098542,1711158638872,-1936.31,0.00019889,2]
[320098545,1711158638882,-500.99417936,0.00019889,2]
[320098546,1711158638892,-500.0,0.00019889,2]
[320098548,1711158638902,-502.08264123,0.00019889,2]
[320098551,1711158638911,-500.0,0.00019889,2]
[320098552,1711158638923,-500.0,0.00019889,2]
[320098554,1711158638932,-500.88298052,0.00019889,2]
[320098556,1711158638942,-975.88,0.00019889,2]
[320098558,1711158638951,-500.0,0.00019889,2]
[320098561,1711158638961,-504.7475679,0.00019889,2]
[320098563,1711158638970,-500.0,0.00019889,2]
[320098565,1711158638980,-503.88281129,0.00019889,2]
[320098567,1711158638989,-1330.34,0.00019889,2]
[320098569,1711158639000,-502.71059763,0.00019889,2]
[320098571,1711158639010,-500.0,0.00019889,2]
[320098573,1711158639019,-500.0,0.00019889,2]
[320098575,1711158639028,-500.0,0.00019889,2]
[320098577,1711158639038,-500.0,0.00019889,2]
[320098579,1711158639047,-1539.52,0.00019889,2]
[320098581,1711158639056,-500.0,0.00019889,2]
[320098583,1711158639065,-500.0,0.00019889,2]
[320098585,1711158639074,-500.0,0.00019889,2]
[320098587,1711158639083,-500.0,0.00019889,2]
[320098589,1711158639092,-500.0,0.00019889,2]
[320098590,1711158639102,-500.0,0.00019889,2]
[320098592,1711158639111,-500.0,0.00019889,2]
[320098594,1711158639120,-500.87915331,0.00019889,2]
[320098597,1711158639129,-2080.78,0.00019889,2]
[320098599,1711158639139,-500.0,0.00019889,2]
[320098601,1711158639149,-500.0,0.00019889,2]
[320098603,1711158639158,-500.0,0.00019889,2]
[320098604,1711158639169,-500.0,0.00019889,2]
[320098606,1711158639178,-501.85228017,0.00019889,2]
[320098608,1711158639187,-158.88742936,0.00019889,2]
[320098615,1711158639233,-341.11257064,0.00019889,2]
[320098617,1711158639242,-392.73911369,0.00019889,2]
[320098620,1711158639263,-107.26088631,0.00019889,2]
[320098622,1711158639273,-2209.88,0.00019889,2]
[320098624,1711158639282,-500.0,0.00019889,2]
[320098626,1711158639292,-500.0,0.00019889,2]
[320098628,1711158639301,-500.0,0.00019889,2]
[320098630,1711158639311,-500.0,0.00019889,2]
[320098632,1711158639320,-500.0,0.00019889,2]
[320098634,1711158639329,-500.0,0.00019889,2]
[320098636,1711158639338,-1822.98,0.00019889,2]
[320098638,1711158639348,-500.0,0.00019889,2]
[320098640,1711158639357,-500.0,0.00019889,2]
[320098642,1711158639366,-500.0,0.00019889,2]
[320098644,1711158639375,-500.0,0.00019889,2]
[320098646,1711158639384,-879.01,0.00019889,2]
[320098648,1711158639394,-500.0,0.00019889,2]
[320098650,1711158639403,-500.0,0.00019889,2]
[320098652,1711158639412,-501.23153118,0.00019889,2]
[320098654,1711158639421,-502.1419948,0.00019889,2]
[320098656,1711158639431,-503.23260634,0.00019889,2]
[320098658,1711158639440,-500.0,0.00019889,2]
[320098660,1711158639449,-500.0,0.00019889,2]
[320098662,1711158639458,-500.0,0.00019889,2]
[320098664,1711158639467,-500.0,0.00019889,2]
[320098666,1711158639476,-500.38907176,0.00019889,2]
[320098668,1711158639485,-868.25,0.00019889,2]
[320098670,1711158639496,-500.0,0.00019889,2]
[320098672,1711158639505,-500.0,0.00019889,2]
[320098674,1711158639515,-500.0,0.00019889,2]
[320098676,1711158639524,-500.75785318,0.00019889,2]
[320098678,1711158639533,-500.0,0.00019889,2]
[320098680,1711158639542,-956.17,0.00019889,2]
[320098682,1711158639551,-500.0,0.00019889,2]
[320098684,1711158639560,-490.3781223,0.00019889,2]
[320098688,1711158639585,-9.6218777,0.00019889,2]
[320098690,1711158639594,-301.34183808,0.00019889,2]
[320098691,1711158639603,-624.35,0.00019889,2]
[320098694,1711158639613,-589.09037042,0.00019889,2]
[320098696,1711158639622,-500.0,0.00019889,2]
[320098698,1711158639631,-500.78349418,0.00019889,2]
[320098700,1711158639640,-500.0,0.00019889,2]
[320098702,1711158639649,-500.0,0.00019889,2]
[320098704,1711158639658,-503.13,0.00019889,2]
[320098706,1711158639666,-521.31,0.00019889,2]
[320098708,1711158639675,-500.0,0.00019889,2]
[320098710,1711158639684,-500.0,0.00019889,2]
[320098712,1711158639693,-500.0,0.00019889,2]
[320098714,1711158639702,-500.0,0.00019889,2]
[320098716,1711158639711,-500.0,0.00019889,2]
[320098718,1711158639720,-500.0,0.00019889,2]
[320098720,1711158639729,-505.81046432,0.00019889,2]
[320098722,1711158639738,-500.0,0.00019889,2]
[320098724,1711158639748,-502.84451282,0.00019889,2]
[320098726,1711158639757,-519.49,0.00019889,2]
[320098727,1711158639766,-500.0,0.00019889,2]
[320098730,1711158639776,-1368.6,0.00019889,2]
[320098732,1711158639785,-776.07,0.00019889,2]
[320098734,1711158639794,-500.0,0.00019889,2]
[320098736,1711158639804,-500.0,0.00019889,2]
[320098738,1711158639813,-500.0,0.00019889,2]
[320098740,1711158639823,-500.0,0.00019889,2]
[320098742,1711158639832,-500.0,0.00019889,2]
[320098744,1711158639841,-500.0,0.00019889,2]
[320098746,1711158639851,-1184.76,0.00019889,2]
[320098748,1711158639860,-997.43,0.00019889,2]
[320098750,1711158639869,-502.66024527,0.00019889,2]
[320098752,1711158639879,-500.0,0.00019889,2]
[320098754,1711158639887,-593.45,0.00019889,2]
[320098756,1711158639896,-500.0,0.00019889,2]
[320098757,1711158639908,-500.0,0.00019889,2]
[320098759,1711158639917,-502.54337558,0.00019889,2]
[320098761,1711158639926,-500.0,0.00019889,2]
[320098762,1711158639936,-530.9,0.00019889,2]
[320098763,1711158639948,-500.0,0.00019889,2]
[320098764,1711158639957,-500.0,0.00019889,2]
[320098765,1711158639967,-503.37861819,0.00019889,2]
[320098766,1711158639976,-632.94,0.00019889,2]
[320098767,1711158639987,-500.0,0.00019889,2]
[320098768,1711158639996,-501.90365483,0.00019889,2]
[320098769,1711158640005,-502.06370538,0.00019889,2]
[320098770,1711158640015,-506.20434368,0.00019889,2]
[320098771,1711158640025,-502.0649024,0.00019889,2]
[320098772,1711158640034,-500.0,0.00019889,2]
[320098773,1711158640043,-501.66432191,0.00019889,2]
[320098774,1711158640052,-500.0,0.00019889,2]
[320098775,1711158640061,-500.57159438,0.00019889,2]
[320098776,1711158640070,-506.92961769,0.00019889,2]
[320098777,1711158640079,-500.85864333,0.00019889,2]
[320098778,1711158640089,-500.0,0.00019889,2]
[320098779,1711158640098,-500.0,0.00019889,2]
[320098780,1711158640107,-1046.96,0.00019889,2]
[320098781,1711158640116,-501.99979851,0.00019889,2]
[320098782,1711158640125,-502.02685579,0.00019889,2]
[320098783,1711158640135,-500.0,0.00019889,2]
[320098784,1711158640144,-501.14507002,0.00019889,2]
[320098785,1711158640153,-500.0,0.00019889,2]
[320098786,1711158640163,-500.0,0.00019889,2]
[320098787,1711158640172,-500.66219918,0.00019889,2]
[320098788,1711158640181,-518.39,0.00019889,2]
[320098789,1711158640190,-501.72609685,0.00019889,2]
[320098790,1711158640200,-710.34,0.00019889,2]
[320098791,1711158640209,-500.0,0.00019889,2]
[320098792,1711158640218,-500.93827933,0.00019889,2]
[320098793,1711158640227,-880.77,0.00019889,2]
[320098794,1711158640236,-523.8,0.00019889,2]
[320098795,1711158640246,-501.86035055,0.00019889,2]
[320098796,1711158640255,-500.0,0.00019889,2]
[320098797,1711158640264,-1437.76,0.00019889,2]
[320098798,1711158640273,-1306.35,0.00019889,2]
[320098799,1711158640283,-500.66718741,0.00019889,2]
[320098800,1711158640292,-500.0,0.00019889,2]
[320098801,1711158640301,-500.0,0.00019889,2]
[320098802,1711158640311,-500.0,0.00019889,2]
[320098803,1711158640320,-500.0,0.00019889,2]
[320098804,1711158640329,-500.0,0.00019889,2]
[320098805,1711158640338,-505.87261177,0.00019889,2]
[320098806,1711158640347,-1167.49,0.00019889,2]
[320098807,1711158640357,-500.0,0.00019889,2]
[320098808,1711158640366,-915.98,0.00019889,2]
[320098809,1711158640375,-1180.68,0.00019889,2]
[320098810,1711158640384,-500.0,0.00019889,2]
[320098811,1711158640394,-3566.35,0.00019889,2]
[320098812,1711158640403,-500.0,0.00019889,2]
[320098813,1711158640412,-746.22,0.00019889,2]
[320098814,1711158640421,-500.0,0.00019889,2]
[320098815,1711158640430,-500.0,0.00019889,2]
[320098816,1711158640439,-8133.24597043,0.00019889,2]
[320098817,1711158640454,-1775.9,0.00019889,2]
[320098818,1711158640465,-3956.56853281,0.00019889,2]
[320098819,1711158641226,-3565.4,0.00019888,2]
[320098820,1711158641235,-62893.46549676,0.00019889,2]
[320098821,1711158641245,-523.49,0.00019889,2]
[320098822,1711158641256,-503.7642442,0.00019889,2]
[320098823,1711158641265,-1266.74,0.00019889,2]
[320098824,1711158641274,-500.0,0.00019889,2]
[320098825,1711158641284,-3028.49,0.00019889,2]
[320098826,1711158641293,-500.0,0.00019889,2]
[320098827,1711158641302,-1188.04,0.00019889,2]
[320098829,1711158641310,-298.49964394,0.00019889,2]
[320098831,1711158641319,-500.0,0.00019889,2]
[320098833,1711158641328,-500.0,0.00019889,2]
[320098834,1711158641338,-500.0,0.00019889,2]
[320098837,1711158641348,-636.17178117,0.00019889,2]
[320098839,1711158641357,-500.0,0.00019889,2]
[320098840,1711158641366,-500.0,0.00019889,2]
[320098842,1711158641374,-729.94,0.00019889,2]
[320098844,1711158641383,-502.34307458,0.00019889,2]
[320098846,1711158641392,-218.48054737,0.00019889,2]
[320098848,1711158641401,-500.0,0.00019889,2]
[320098850,1711158641410,-500.0,0.00019889,2]
[320098852,1711158641420,-502.29821013,0.00019889,2]
[320098853,1711158641429,-1341.14,0.00019889,2]
[320098854,1711158641438,-500.87681398,0.00019889,2]
[320098855,1711158641446,-391.55131241,0.00019889,2]
[320098856,1711158641456,-160.7120129,0.00019889,2]
[320098857,1711158641465,-500.0,0.00019889,2]
[320098858,1711158641474,-500.65766205,0.00019889,2]
[320098859,1711158641483,-505.34682621,0.00019889,2]
[320098860,1711158641492,-501.96364729,0.00019889,2]
[320098861,1711158641504,-510.34358264,0.00019889,2]
[320098862,1711158641512,-1805.7,0.00019889,2]
[320098863,1711158641522,-500.0,0.00019889,2]
[320098864,1711158641531,-510.76324422,0.00019889,2]
[320098865,1711158641540,-500.0,0.00019889,2]
[320098866,1711158641549,-502.03051459,0.00019889,2]
[320098867,1711158641558,-503.42953043,0.00019889,2]
[320098868,1711158641567,-500.0,0.00019889,2]
[320098869,1711158641576,-503.61550257,0.00019889,2]
[320098870,1711158641585,-872.0,0.00019889,2]
[320098871,1711158641594,-1073.02,0.00019889,2]
[320098872,1711158641604,-1279.79,0.00019889,2]
[320098873,1711158641613,-1120.5,0.00019889,2]
[320098874,1711158641622,-500.0,0.00019889,2]
[320098875,1711158641631,-502.97867255,0.00019889,2]
[320098876,1711158641641,-503.06705409,0.00019889,2]
[320098877,1711158641650,-157.75068605,0.00019889,2]
[320098878,1711158641663,-342.24931395,0.00019889,2]
[320098879,1711158641672,-500.0,0.00019889,2]
[320098880,1711158641681,-500.0,0.00019889,2]
[320098881,1711158641690,-1414.95468123,0.00019889,2]
[320098882,1711158641703,-671.18531877,0.00019889,2]
[320098883,1711158641713,-502.45189965,0.00019889,2]
[320098884,1711158641722,-422.29966662,0.00019889,2]
[320098885,1711158641734,-1183.28033338,0.00019889,2]
[320098886,1711158641744,-500.0,0.00019889,2]
[320098887,1711158641755,-500.86416897,0.00019889,2]
[320098888,1711158641766,-493.12346007,0.00019889,2]
[320098889,1711158641790,-762.81881435,0.000198,2]
[320098890,1711158641799,-6.87653993,0.00019889,2]
[320098891,1711158641810,-125.98467072,0.00019889,2]
[320098892,1711158641851,-80.59784514,0.00019889,2]
[320098893,1711158641860,-500.0,0.00019889,2]
[320098894,1711158641870,-501.68766195,0.00019889,2]
[320098895,1711158641879,-500.63693525,0.00019889,2]
[320098896,1711158641888,-88.97755766,0.00019889,2]
[320098897,1711158641900,-385.33,0.00019889,2]
[320098898,1711158642042,-733.881,0.00019889,2]
[320098899,1711158642054,-386.13999998,0.00019889,2]
[320098919,1711158643286,-385.67450172,0.00019054,2]
[320098920,1711158643301,-2760.98679896,0.00019054,2]
[320098921,1711158643313,-617.97775898,0.00019054,2]
[320098922,1711158643330,-1414.91982816,0.00019054,2]
[320098923,1711158643364,-1169.64260228,0.00019054,2]
[320098924,1711158643376,-849.9862,0.00019054,2]
[320098925,1711158643388,-779.80874953,0.00019054,2]
[320098926,1711158643477,-1275.19604939,0.00019054,2]
[320098927,1711158643489,-432.16,0.00019054,2]
[320098928,1711158643645,-4317.27137511,0.00019054,2]
[320098954,1711158646560,-546.17251972,0.00016834,2]
[320098955,1711158646570,-75983.56275312,0.00019054,2]
[320098956,1711158646582,-8130.45401479,0.00019054,2]
[320098957,1711158646591,-4617.68648523,0.00019888,2]
[320098958,1711158646603,-835.2218875,0.00019888,2]
[320098959,1711158646771,-1803.57162727,0.00019888,2]